bitfinex-derivatives/quotes_SOLF0:USTF0_20250419
["timestamp","ask_amount","ask_price","bid_price","bid_amount"]
[1745049619078,4.81756987,138.77,138.7,1.32368195]
[1745049619314,363.0,138.8,138.7,1.32368195]
[1745049619480,4.81682264,138.79,138.7,1.32368195]
[1745049619782,4.81682264,138.78,138.7,1.32368195]
[1745049619972,4.81682264,138.77,138.69,25.32]
[1745049620177,363.0,138.8,138.7,1.32381858]
[1745049620376,4.81682892,138.79,138.7,1.32381858]
[1745049620576,4.81682892,138.78,138.7,1.32381858]
[1745049620780,4.81682892,138.77,138.7,1.32381858]
[1745049620979,363.0,138.8,138.7,1.32381858]
[1745049621182,4.81619664,138.79,138.7,1.32381858]
[1745049621482,4.81619664,138.78,138.7,1.32381858]
[1745049621679,4.81619664,138.77,138.69,25.32]
[1745049621875,363.0,138.8,138.7,1.32380975]
[1745049622178,4.8155966,138.79,138.7,1.32380975]
[1745049622378,4.8155966,138.78,138.7,1.32380975]
[1745049622578,4.8155966,138.77,138.7,1.32380975]
[1745049622779,363.0,138.8,138.7,1.32380975]
[1745049622974,4.81595493,138.79,138.69,25.32]
[1745049623179,4.81595493,138.78,138.7,1.32381858]
[1745049623483,4.81595493,138.77,138.69,25.32]
[1745049623682,363.0,138.8,138.7,1.32381865]
[1745049623883,4.81644221,138.79,138.7,1.32381865]
[1745049624084,4.81644221,138.78,138.7,1.32381865]
[1745049624382,4.81644221,138.77,138.7,1.32381865]
[1745049624582,363.0,138.8,138.7,1.32381865]
[1745049624784,4.81711453,138.79,138.7,1.32381865]
[1745049624976,4.81711453,138.78,138.69,25.32]
[1745049625176,4.81711453,138.77,138.7,1.32381858]
[1745049625379,363.0,138.8,138.7,1.32381858]
[1745049625583,4.81755817,138.79,138.7,1.32381858]
[1745049625883,4.81755817,138.78,138.7,1.32381858]
[1745049626083,4.81755817,138.77,138.7,1.32381858]
[1745049626285,363.0,138.8,138.7,1.32381858]
[1745049626479,4.81781109,138.79,138.7,1.32381858]
[1745049626684,4.81781109,138.78,138.7,1.32381858]
[1745049626884,4.81781109,138.77,138.7,1.32381858]
[1745049627086,363.0,138.8,138.7,1.32381858]
[1745049627286,4.81702267,138.79,138.7,1.32381858]
[1745049627484,4.81702267,138.78,138.7,1.32381858]
[1745049627686,363.0,138.8,138.7,1.32381858]
[1745049627984,4.81704102,138.79,138.7,1.32381858]
[1745049628180,4.81704102,138.78,138.69,25.32]
[1745049628383,363.0,138.8,138.7,1.32379212]
[1745049628581,4.81684541,138.79,138.7,1.32379212]
[1745049628787,5.8515,138.81,138.7,1.32379212]
[1745049628981,5.8515,138.81,138.68,2.7978]
[1745049628982,4.81577163,138.8,138.71,26.64379212]
[1745049629184,4.81577163,138.79,138.72,1.32379212]
[1745049629480,5.8515,138.81,138.72,1.32379212]
[1745049629684,4.81561447,138.8,138.71,25.32]
[1745049629985,4.81561447,138.79,138.72,1.32358497]
[1745049630184,5.8515,138.81,138.72,1.32358497]
[1745049630386,4.81467561,138.8,138.72,1.32358497]
[1745049630687,4.81467561,138.79,138.72,1.32358497]
[1745049630986,5.8515,138.81,138.72,1.32358497]
[1745049631188,4.81516134,138.8,138.72,1.32358497]
[1745049631393,4.81516134,138.79,138.72,1.32358497]
[1745049631585,5.8515,138.81,138.72,1.32358497]
[1745049631888,4.81494522,138.8,138.72,1.32358497]
[1745049632189,4.81494522,138.79,138.72,1.32358497]
[1745049632388,5.8515,138.81,138.72,1.32358497]
[1745049632592,4.81455724,138.8,138.72,1.32358497]
[1745049632784,4.81455724,138.79,138.72,1.32358497]
[1745049632990,5.8515,138.81,138.71,25.32]
[1745049633182,4.81456353,138.8,138.72,1.32358453]
[1745049633385,5.8515,138.81,138.72,1.32358453]
[1745049633584,4.81384834,138.8,138.72,1.32358453]
[1745049633783,5.8515,138.81,138.72,1.32358453]
[1745049633993,4.81368594,138.8,138.72,1.32358453]
[1745049634189,5.8515,138.81,138.72,1.32358453]
[1745049634384,4.81368594,138.8,138.72,1.32358453]
[1745049634587,5.8515,138.81,138.71,25.32]
[1745049634791,4.81313472,138.8,138.72,1.32356004]
[1745049634990,5.8515,138.81,138.72,1.32356004]
[1745049635183,4.81313471,138.8,138.72,1.32356004]
[1745049635385,5.8515,138.81,138.72,1.32356004]
[1745049635683,4.81265684,138.8,138.72,1.32356004]
[1745049635887,4.81265684,138.79,138.72,1.32356004]
[1745049636086,5.8515,138.81,138.72,1.32356004]
[1745049636288,4.81272854,138.8,138.72,1.32356004]
[1745049636485,5.8515,138.81,138.72,1.32356004]
[1745049636688,4.8123467,138.8,138.72,1.32356004]
[1745049636888,5.8515,138.81,138.72,1.32356004]
[1745049637094,4.81223299,138.8,138.72,1.32356004]
[1745049637292,5.8515,138.81,138.72,1.32356004]
[1745049637490,4.81160687,138.8,138.72,1.32356004]
[1745049637689,5.8515,138.81,138.72,1.32356004]
[1745049637890,4.81166022,138.8,138.76,5.75851284]
[1745049638191,11.61001284,138.81,138.77,25.32]
[1745049638392,4.81116058,138.8,138.77,25.32]
[1745049638587,11.61001284,138.81,138.77,25.32]
[1745049639895,4.81076747,138.8,138.77,25.32]
[1745049640093,11.61001284,138.81,138.77,25.32]
[1745049645599,5.8515,138.81,138.77,25.32]
[1745049645799,1.9567,138.81,138.8,5.75851284]
[1745049646002,1.9689,138.86,138.8,5.75851284]
[1745049646194,5.75851284,138.84,138.81,25.32]
[1745049646397,6.80505539,138.83,138.81,25.32]
[1745049646598,1.9967,138.83,138.81,25.32]
[1745049646899,1.9271,138.82,138.81,25.32]
[1745049653904,1.9689,138.86,138.81,31.07851284]
[1745049654208,6.79777202,138.85,138.81,31.07851284]
[1745049654508,1.9908,138.85,138.81,31.07851284]
[1745049659913,1.9908,138.85,138.83,5.75851284]
[1745049664317,1.9908,138.85,138.84,25.3]
[1745049664920,1.9454,138.88,138.84,25.3]
[1745049665120,1.9454,138.88,138.87,5.75851284]
[1745049665316,2.0013,138.89,138.87,31.05851284]
[1745049666310,570.46,138.96,138.87,31.05851284]
[1745049666311,25.3,139.0,138.88,5.75851284]
[1745049666516,5.75851284,138.98,138.93,5.75851284]
[1745049666817,8.70837003,138.97,138.93,5.75851284]
[1745049667017,4.79717003,138.96,138.93,5.75851284]
[1745049667316,3.9112,138.97,138.93,5.75851284]
[1745049667720,4.79214769,138.96,138.93,5.75851284]
[1745049667912,3.9112,138.97,138.93,5.75851284]
[1745049668115,4.79228424,138.96,138.93,5.75851284]
[1745049668316,3.9112,138.97,138.93,5.75851284]
[1745049669815,3.9112,138.97,138.95,5.75851284]
[1745049671225,3.9112,138.97,138.93,5.75851284]
[1745049672119,3.9112,138.97,138.92,31.05851284]
[1745049672318,5.75851284,138.96,138.92,25.3]
[1745049672517,5.75851284,138.94,138.89,25.28]
[1745049672723,2.008,138.93,138.89,25.28]
[1745049673221,1.8772,138.92,138.89,25.28]
[1745049673420,7.63571284,138.92,138.87,25.28]
[1745049673620,1.8661,138.91,138.87,25.28]
[1745049676225,5.75851284,138.9,138.84,5.75851284]
[1745049676425,5.75851284,138.88,138.83,25.28]
[1745049678424,5.75851284,138.88,138.84,5.75851284]
[1745049680527,5.75851284,138.9,138.84,5.75851284]
[1745049683630,1.8661,138.91,138.84,5.75851284]
[1745049683830,5.75851284,138.9,138.84,5.75851284]
[1745049686830,5.75851284,138.9,138.86,5.75851284]
[1745049687031,1.8661,138.91,138.86,31.05851284]
[1745049687224,1.8661,138.91,138.88,5.75851284]
[1745049687430,7.63571284,138.92,138.88,5.75851284]
[1745049689335,4.79242165,138.91,138.88,5.75851284]
[1745049689634,7.63571284,138.92,138.86,31.05851284]
[1745049689932,4.79242313,138.91,138.86,31.05851284]
[1745049690134,7.63571284,138.92,138.86,31.05851284]
[1745049690434,5.75851284,138.9,138.86,31.05851284]
[1745049691338,5.75851284,138.9,138.86,25.3]
[1745049692836,5.75851284,138.9,138.84,5.75851284]
[1745049693039,5.75851284,138.9,138.84,31.05851284]
[1745049693443,5.75851284,138.88,138.84,25.3]
[1745049693640,5.75851284,138.86,138.82,25.3]
[1745049694538,25.3,138.9,138.82,25.3]
[1745049694739,5.75851284,138.87,138.82,25.3]
[1745049695038,4.79826197,138.86,138.82,25.3]
[1745049695238,5.75851284,138.87,138.82,25.3]
[1745049695438,4.79860328,138.86,138.82,25.3]
[1745049695738,5.75851284,138.87,138.82,25.3]
[1745049695939,4.79867522,138.86,138.82,25.3]
[1745049696139,5.75851284,138.87,138.82,25.3]
[1745049696340,4.79867522,138.86,138.82,25.3]
[1745049696533,5.75851284,138.87,138.82,25.3]
[1745049696852,4.7989618,138.86,138.82,25.3]
[1745049697038,5.75851284,138.87,138.82,25.3]
[1745049697336,4.79896183,138.86,138.82,25.3]
[1745049697537,5.75851284,138.87,138.82,25.3]
[1745049697739,4.7991608,138.86,138.82,25.3]
[1745049697937,5.75851284,138.87,138.82,25.3]
[1745049698244,4.7991671,138.86,138.82,25.3]
[1745049698440,5.75851284,138.85,138.82,25.3]
[1745049701442,5.75851284,138.85,138.8,6.05848284]
[1745049701742,5.75851284,138.85,138.8,31.35848284]
[1745049706145,4.79854765,138.84,138.8,31.35848284]
[1745049706346,5.75851284,138.85,138.8,31.35848284]
[1745049706645,4.79820605,138.84,138.8,31.35848284]
[1745049706844,5.75851284,138.85,138.8,31.35848284]
[1745049707144,4.79821539,138.84,138.8,25.59997]
[1745049707344,5.75851284,138.85,138.8,25.59997]
[1745049707551,5.75851284,138.83,138.8,25.59997]
[1745049707947,5.75851284,138.83,138.8,0.29997]
[1745049709347,5.75851284,138.83,138.78,5.75851284]
[1745049711252,25.3,138.84,138.78,5.75851284]
[1745049712451,9.65841284,138.86,138.8,5.75851284]
[1745049712653,4.79495255,138.85,138.82,5.75851284]
[1745049712950,3.8999,138.86,138.82,5.75851284]
[1745049713347,4.79625333,138.85,138.82,5.75851284]
[1745049713548,3.8999,138.86,138.82,5.75851284]
[1745049713752,4.79632162,138.85,138.82,5.75851284]
[1745049713952,3.8999,138.86,138.82,5.75851284]
[1745049714151,4.79633619,138.85,138.82,5.75851284]
[1745049714451,3.8999,138.86,138.82,5.75851284]
[1745049714652,4.79856662,138.85,138.82,5.75851284]
[1745049714852,3.8999,138.86,138.82,5.75851284]
[1745049715055,4.79849515,138.85,138.82,5.75851284]
[1745049715255,3.8999,138.86,138.82,5.75851284]
[1745049715456,4.79870941,138.85,138.82,5.75851284]
[1745049715658,3.8999,138.86,138.82,5.75851284]
[1745049715859,4.8015516,138.85,138.82,5.75851284]
[1745049716151,1.9954,138.86,138.82,5.75851284]
[1745049716359,4.80492853,138.85,138.82,5.75851284]
[1745049716655,1.9954,138.86,138.82,5.75851284]
[1745049716856,4.80529774,138.85,138.82,5.75851284]
[1745049717057,4.80529774,138.84,138.82,5.75851284]
[1745049717258,1.9954,138.86,138.8,31.05851284]
[1745049717458,4.80555287,138.85,138.8,31.05851284]
[1745049717654,1.9954,138.86,138.8,31.05851284]
[1745049717655,4.80555287,138.84,138.8,31.05851284]
[1745049717861,5.75851284,138.85,138.8,31.05851284]
[1745049718060,4.80818342,138.84,138.8,31.05851284]
[1745049718262,5.75851284,138.85,138.8,31.05851284]
[1745049718461,4.80980477,138.84,138.8,31.05851284]
[1745049718662,5.75851284,138.85,138.8,31.05851284]
[1745049718862,4.80980477,138.84,138.8,31.05851284]
[1745049719064,5.75851284,138.85,138.8,31.05851284]
[1745049719265,4.80976344,138.84,138.8,31.05851284]
[1745049719465,4.80976344,138.83,138.8,31.05851284]
[1745049719764,5.75851284,138.85,138.8,31.05851284]
[1745049719964,4.8104772,138.84,138.8,31.05851284]
[1745049720164,4.8104772,138.83,138.8,31.05851284]
[1745049720366,5.75851284,138.85,138.8,31.05851284]
[1745049720566,4.81056064,138.84,138.8,31.05851284]
[1745049720866,5.75851284,138.85,138.8,31.05851284]
[1745049721166,4.81059834,138.84,138.8,31.05851284]
[1745049721360,5.75851284,138.85,138.8,31.05851284]
[1745049721562,4.81074653,138.84,138.8,31.05851284]
[1745049721766,5.75851284,138.85,138.8,31.05851284]
[1745049721967,4.81063415,138.84,138.8,31.05851284]
[1745049722168,5.75851284,138.85,138.8,31.05851284]
[1745049722370,4.81081845,138.84,138.8,31.05851284]
[1745049722666,5.75851284,138.85,138.8,31.05851284]
[1745049722966,4.8109241,138.84,138.8,31.05851284]
[1745049723169,5.75851284,138.85,138.8,31.05851284]
[1745049730175,5.75851284,138.85,138.79,5.75851284]
[1745049730381,5.75851284,138.83,138.79,31.05851284]
[1745049730578,5.75851284,138.81,138.76,31.05851284]
[1745049731275,31.05851284,138.84,138.78,5.75851284]
[1745049731781,7.76251284,138.85,138.8,5.75851284]
[1745049732281,5.75851284,138.85,138.8,5.75851284]
[1745049736883,5.75851284,138.85,138.79,25.3]
[1745049737082,5.75851284,138.83,138.79,25.3]
[1745049743393,25.3,138.84,138.79,31.05851284]
[1745049747196,5.75851284,138.83,138.79,25.3]
[1745049747397,5.75851284,138.83,138.78,5.75851284]
[1745049750097,31.05851284,138.84,138.78,5.75851284]
[1745049753097,5.75851284,138.82,138.76,25.3]
[1745049764517,5.75851284,138.82,138.77,5.75851284]
[1745049772523,3.9167,138.83,138.79,5.75851284]
[1745049777530,3.9167,138.83,138.77,5.75851284]
[1745049777731,5.75851284,138.82,138.77,5.75851284]
[1745049779931,5.75851284,138.82,138.76,31.05851284]
[1745049780134,5.75851284,138.8,138.76,25.3]
[1745049789336,5.75851284,138.82,138.76,25.3]
[1745049789934,3.9167,138.83,138.76,25.3]
[1745049790128,5.75851284,138.82,138.76,25.3]
[1745049791038,5.75851284,138.8,138.76,25.3]
[1745049791439,5.75851284,138.82,138.76,25.3]
[1745049792836,3.9167,138.83,138.76,25.3]
[1745049793037,5.75851284,138.82,138.77,5.75851284]
[1745049797344,5.75851284,138.8,138.76,25.3]
[1745049797645,5.75851284,138.78,138.71,576.11851284]
[1745049797847,2.039,138.79,138.71,576.11851284]
[1745049798032,5.75851284,138.76,138.71,576.11851284]
[1745049802144,25.3,138.8,138.71,576.11851284]
[1745049802345,5.75851284,138.77,138.71,576.11851284]
[1745049803043,5.75851284,138.77,138.71,5.75851284]
[1745049803245,5.75851284,138.75,138.7,31.05851284]
[1745049806648,1.25455135,138.79,138.72,5.75851284]
[1745049806946,5.75851284,138.79,138.72,5.75851284]
[1745049807148,5.75851284,138.77,138.72,5.75851284]
[1745049813353,4.56665465,138.76,138.72,5.75851284]
[1745049813555,4.83760555,138.75,138.72,5.75851284]
[1745049813853,4.83760555,138.74,138.72,5.75851284]
[1745049814054,4.56665465,138.75,138.72,5.75851284]
[1745049814256,9.40393117,138.74,138.72,5.75851284]
[1745049814454,4.56665465,138.73,138.72,5.75851284]
[1745049818862,31.05851284,138.8,138.72,5.75851284]
[1745049819157,4.8364779,138.79,138.75,5.75851284]
[1745049819363,4.8364779,138.78,138.75,5.75851284]
[1745049819662,4.8364779,138.77,138.75,5.75851284]
[1745049819862,4.8364779,138.76,138.75,5.75851284]
[1745049822165,4.8364779,138.76,138.73,5.75851284]
[1745049822463,4.8364779,138.75,138.73,5.75851284]
[1745049822661,4.8364779,138.74,138.73,5.75851284]
[1745049823767,4.8364779,138.74,138.72,31.05851284]
[1745049823965,4.83313915,138.73,138.72,25.3]
[1745049824167,4.83058745,138.73,138.72,25.3]
[1745049824663,5.75851284,138.76,138.72,25.3]
[1745049824865,4.83058846,138.75,138.72,25.3]
[1745049825163,4.83058846,138.74,138.72,25.3]
[1745049825365,4.83058846,138.73,138.72,25.3]
[1745049826274,5.75851284,138.76,138.72,25.3]
[1745049826568,4.82805902,138.75,138.72,25.3]
[1745049826773,4.82805902,138.74,138.72,25.3]
[1745049826964,5.75851284,138.76,138.72,25.3]
[1745049827165,4.82805902,138.75,138.72,25.3]
[1745049827364,4.82805902,138.74,138.72,25.3]
[1745049827563,5.75851284,138.76,138.72,25.3]
[1745049827766,4.82747873,138.75,138.72,25.3]
[1745049827967,4.82747873,138.74,138.72,25.3]
[1745049828171,5.75851284,138.76,138.72,25.3]
[1745049828470,4.82711587,138.75,138.72,25.3]
[1745049828665,4.82711587,138.74,138.72,25.3]
[1745049828862,5.75851284,138.76,138.72,25.3]
[1745049829064,4.82711587,138.75,138.72,25.3]
[1745049829261,4.82711587,138.74,138.72,25.3]
[1745049829467,5.75851284,138.76,138.72,25.3]
[1745049829666,4.82691127,138.75,138.72,25.3]
[1745049829868,4.82691127,138.74,138.72,25.3]
[1745049830068,5.75851284,138.76,138.72,25.3]
[1745049830265,4.82691762,138.75,138.71,5.75851284]
[1745049830475,4.82691762,138.74,138.69,31.05851284]
[1745049830675,4.82691762,138.73,138.69,31.05851284]
[1745049830877,5.75851284,138.76,138.69,31.05851284]
[1745049831170,4.8270276,138.75,138.69,31.05851284]
[1745049831368,4.8270276,138.74,138.69,31.05851284]
[1745049831568,4.8270276,138.73,138.69,31.05851284]
[1745049831767,4.47970254,138.75,138.69,31.05851284]
[1745049831967,4.82664621,138.74,138.69,31.05851284]
[1745049832180,9.30634875,138.73,138.69,31.05851284]
[1745049832376,4.47970254,138.73,138.69,31.05851284]
[1745049832577,4.47970254,138.72,138.69,31.05851284]
[1745049832877,4.47970254,138.71,138.69,31.05851284]
[1745049833379,5.75851284,138.76,138.69,31.05851284]
[1745049833576,4.82636857,138.75,138.69,31.05851284]
[1745049833778,9.30547892,138.74,138.69,31.05851284]
[1745049834074,4.82636857,138.73,138.69,31.05851284]
[1745049834276,4.47911035,138.74,138.69,31.05851284]
[1745049834478,4.82586332,138.73,138.69,31.05851284]
[1745049834678,4.47911035,138.73,138.69,31.05851284]
[1745049834873,4.82590063,138.72,138.69,31.05851284]
[1745049835075,4.47911035,138.71,138.69,31.05851284]
[1745049835781,4.47911035,138.7,138.69,31.05851284]
[1745049840484,5.75851284,138.76,138.69,31.05851284]
[1745049840784,9.29498154,138.75,138.69,31.05851284]
[1745049841084,15.05349438,138.74,138.69,31.05851284]
[1745049841285,4.8209182,138.73,138.69,31.05851284]
[1745049841487,10.23257618,138.74,138.64,572.4918]
[1745049841488,10.57943104,138.72,138.67,31.05851284]
[1745049841684,4.8209182,138.71,138.67,31.05851284]
[1745049841885,5.75851284,138.72,138.67,31.05851284]
[1745049842085,4.47406334,138.7,138.67,25.3]
[1745049842282,4.82169371,138.69,138.67,25.3]
[1745049842483,4.47406334,138.68,138.67,25.3]
[1745049842683,4.47406334,138.68,138.67,31.05851284]
[1745049842882,9.68401284,138.73,138.67,31.05851284]
[1745049843085,4.81925844,138.72,138.69,5.75851284]
[1745049843283,9.29186041,138.71,138.69,5.75851284]
[1745049843582,4.47260197,138.71,138.69,5.75851284]
[1745049843988,4.47260197,138.7,138.69,5.75851284]
[1745049852592,4.47260197,138.7,138.68,5.75851284]
[1745049852792,4.47260197,138.7,138.67,25.3]
[1745049852793,4.47260197,138.7,138.67,31.05851284]
[1745049853293,4.47260197,138.69,138.67,31.05851284]
[1745049853894,1.8832,138.72,138.67,31.05851284]
[1745049854104,4.81584584,138.71,138.67,31.05851284]
[1745049854293,4.81595332,138.7,138.67,31.05851284]
[1745049854494,1.8832,138.72,138.67,31.05851284]
[1745049854695,4.81539969,138.71,138.67,31.05851284]
[1745049854994,9.28444223,138.7,138.67,31.05851284]
[1745049855191,4.46904254,138.7,138.67,31.05851284]
[1745049855390,4.46904254,138.69,138.67,31.05851284]
[1745049855995,1.8832,138.72,138.67,31.05851284]
[1745049856190,4.81490557,138.71,138.67,31.05851284]
[1745049856494,5.75851284,138.71,138.67,31.05851284]
[1745049857094,4.4682363,138.7,138.67,31.05851284]
[1745049857595,4.4682363,138.7,138.67,25.3]
[1745049857787,15.0413832,138.69,138.62,5.75851284]
[1745049857988,5.75851284,138.67,138.62,25.32]
[1745049858392,4.4682363,138.66,138.62,32.5342]
[1745049858697,4.4682363,138.65,138.62,32.5342]
[1745049858892,5.75851284,138.67,138.62,32.5342]
[1745049859093,4.81419989,138.66,138.62,32.5342]
[1745049859296,5.75851284,138.67,138.62,25.32]
[1745049859494,4.46789452,138.66,138.62,25.32]
[1745049859997,4.46789452,138.65,138.62,25.32]
[1745049860598,5.75851284,138.67,138.62,25.32]
[1745049861198,5.75851284,138.67,138.57,570.88]
[1745049861199,5.75851284,138.65,138.57,570.88]
[1745049861400,5.75851284,138.65,138.6,5.75851284]
[1745049861695,4.46515947,138.64,138.6,5.75851284]
[1745049861898,5.75851284,138.65,138.6,5.75851284]
[1745049862801,4.46143358,138.64,138.6,5.75851284]
[1745049863601,5.75851284,138.65,138.6,5.75851284]
[1745049864100,31.07851284,138.67,138.6,5.75851284]
[1745049864293,31.07851284,138.67,138.62,5.75851284]
[1745049864597,4.45920075,138.66,138.62,5.75851284]
[1745049864998,31.07851284,138.67,138.62,5.75851284]
[1745049865198,25.32,138.67,138.62,5.75851284]
[1745049865497,5.75851284,138.69,138.62,5.75851284]
[1745049865698,9.26377587,138.68,138.62,5.75851284]
[1745049866002,4.45915417,138.67,138.62,5.75851284]
[1745049867002,4.45915417,138.66,138.62,5.75851284]
[1745049867302,5.75851284,138.69,138.62,5.75851284]
[1745049867501,9.26472413,138.68,138.62,5.75851284]
[1745049867695,4.45961086,138.68,138.62,5.75851284]
[1745049867894,4.45961086,138.67,138.62,5.75851284]
[1745049868400,4.45961086,138.66,138.62,5.75851284]
[1745049868702,5.75851284,138.69,138.62,5.75851284]
[1745049868902,4.80528139,138.68,138.62,5.75851284]
[1745049869103,5.75851284,138.69,138.62,5.75851284]
[1745049869402,9.26524448,138.68,138.62,5.75851284]
[1745049869605,5.75851284,138.67,138.62,5.75851284]
[1745049869903,4.45999253,138.66,138.62,5.75851284]
[1745049870103,5.75851284,138.67,138.62,5.75851284]
[1745049870302,5.75851284,138.65,138.61,25.32]
[1745049870706,4.4599016,138.64,138.61,25.32]
[1745049870899,4.4599016,138.64,138.6,5.75851284]
[1745049871104,5.75851284,138.65,138.6,5.75851284]
[1745049872005,4.45949174,138.64,138.58,25.32]
[1745049872204,4.45949174,138.64,138.59,5.75851284]
[1745049872504,5.75851284,138.65,138.59,5.75851284]
[1745049874206,4.45881894,138.64,138.59,5.75851284]
[1745049874907,5.75851284,138.65,138.59,5.75851284]
[1745049876006,4.45884395,138.64,138.59,5.75851284]
[1745049876907,5.75851284,138.65,138.59,5.75851284]
[1745049877808,4.45918873,138.64,138.59,5.75851284]
[1745049878009,5.75851284,138.65,138.59,5.75851284]
[1745049878508,5.75851284,138.63,138.59,5.75851284]
[1745049879008,4.46034936,138.62,138.59,5.75851284]
[1745049879311,4.46034936,138.62,138.58,25.32]
[1745049879506,4.46034936,138.61,138.58,25.32]
[1745049879911,4.46034936,138.61,138.57,576.63851284]
[1745049880108,5.75851284,138.63,138.57,576.63851284]
[1745049880609,4.45966806,138.62,138.57,576.63851284]
[1745049880809,4.45966806,138.62,138.57,601.95851284]
[1745049881010,4.45966806,138.62,138.57,576.63851284]
[1745049881206,4.45966806,138.62,138.57,601.95851284]
[1745049881611,4.45966806,138.61,138.57,601.95851284]
[1745049882513,5.75851284,138.63,138.57,601.95851284]
[1745049882708,5.75851284,138.63,138.57,31.07851284]
[1745049883011,4.45881915,138.62,138.57,31.07851284]
[1745049883513,4.45881915,138.61,138.57,31.07851284]
[1745049883914,5.75851284,138.63,138.57,31.07851284]
[1745049884718,4.45865155,138.62,138.57,31.07851284]
[1745049885819,5.75851284,138.61,138.57,31.07851284]
[1745049886918,4.45865155,138.6,138.57,31.07851284]
[1745049887721,5.75851284,138.63,138.57,31.07851284]
[1745049888021,4.45784637,138.62,138.57,31.07851284]
[1745049888524,4.45784637,138.61,138.57,31.07851284]
[1745049888822,5.75851284,138.63,138.57,31.07851284]
[1745049889321,4.45761055,138.62,138.57,31.07851284]
[1745049889823,4.45761055,138.61,138.57,31.07851284]
[1745049890325,5.75851284,138.63,138.57,31.07851284]
[1745049890519,5.75851284,138.63,138.57,25.32]
[1745049890723,9.26105702,138.62,138.57,31.07851284]
[1745049890926,4.45791962,138.62,138.57,31.07851284]
[1745049891127,10.21643246,138.61,138.57,31.07851284]
[1745049891523,5.75851284,138.61,138.57,31.07851284]
[1745049891817,5.75851284,138.61,138.57,25.32]
[1745049892022,4.45830648,138.6,138.57,25.32]
[1745049892417,5.75851284,138.61,138.57,25.32]
[1745049894128,4.45962192,138.6,138.57,25.32]
[1745049894629,5.75851284,138.61,138.57,25.32]
[1745049895129,4.46040967,138.6,138.57,25.32]
[1745049895629,5.75851284,138.61,138.57,25.32]
[1745049896931,4.46272985,138.6,138.57,25.32]
[1745049897634,4.46272985,138.59,138.57,25.32]
[1745049898633,5.75851284,138.61,138.57,25.32]
[1745049898832,4.46585692,138.6,138.57,25.32]
[1745049899632,4.46585692,138.59,138.57,25.32]
[1745049899933,5.75851284,138.61,138.57,25.32]
[1745049900335,4.81293188,138.6,138.57,25.32]
[1745049900534,4.46866357,138.6,138.57,25.32]
[1745049900830,4.46866357,138.59,138.57,25.32]
[1745049901134,4.46866357,138.58,138.57,25.32]
[1745049905437,16.50862456,138.58,138.4,463.02004505]
[1745049905637,16.50862456,138.58,138.53,5.75851284]
[1745049905638,4.81996099,138.57,138.53,5.75851284]
[1745049905936,4.46866357,138.56,138.53,5.75851284]
[1745049906435,4.46866357,138.55,138.53,5.75851284]
[1745049907138,4.46866357,138.55,138.52,31.09851284]
[1745049907441,5.75851284,138.58,138.52,31.09851284]
[1745049907633,4.81826331,138.57,138.54,5.75851284]
[1745049907834,25.34,138.59,138.54,5.75851284]
[1745049908131,4.47204619,138.56,138.52,25.34]
[1745049908335,31.09851284,138.62,138.56,5.75851284]
[1745049908637,4.81736368,138.61,138.56,5.75851284]
[1745049908836,31.09851284,138.62,138.56,5.75851284]
[1745049909039,4.81694876,138.61,138.58,5.75851284]
[1745049909339,25.34,138.65,138.6,5.75851284]
[1745049909536,4.81692527,138.64,138.6,5.75851284]
[1745049909835,4.81692527,138.63,138.6,5.75851284]
[1745049910037,4.81692527,138.62,138.6,5.75851284]
[1745049910237,25.34,138.65,138.6,5.75851284]
[1745049910538,4.81731192,138.64,138.6,5.75851284]
[1745049910740,4.81731192,138.63,138.6,5.75851284]
[1745049910933,4.81731192,138.62,138.6,5.75851284]
[1745049911137,25.34,138.65,138.6,5.75851284]
[1745049911434,4.81828679,138.64,138.6,5.75851284]
[1745049911632,4.81828679,138.63,138.6,5.75851284]
[1745049911831,4.81828679,138.62,138.6,5.75851284]
[1745049912032,25.34,138.65,138.6,5.75851284]
[1745049912232,10.57761806,138.64,138.6,5.75851284]
[1745049912432,4.81910522,138.63,138.6,5.75851284]
[1745049912633,4.81910522,138.62,138.6,5.75851284]
[1745049912833,5.75851284,138.64,138.6,5.75851284]
[1745049913037,4.82029204,138.63,138.6,5.75851284]
[1745049913242,4.82029204,138.62,138.6,5.75851284]
[1745049913442,5.75851284,138.64,138.6,5.75851284]
[1745049913741,4.82165256,138.63,138.6,5.75851284]
[1745049914039,4.82165256,138.62,138.6,5.75851284]
[1745049914236,5.75851284,138.64,138.6,5.75851284]
[1745049914432,4.82185763,138.63,138.6,5.75851284]
[1745049914638,4.82185763,138.62,138.6,5.75851284]